[Event "*** SCC Grand Prix: Titled Tuesday Blitz"]
[Site "Chess.com"]
[Date "2020.06.09"]
[Round "9"]
[White "WIDBIFS"]
[Black "Vaathi_Coming"]
[Result "0-1"]
[WhiteElo "2686"]
[BlackElo "2841"]
[TimeControl "180+1"]
[EndTime "10:48:42 PDT"]
[Termination "Vaathi_Coming won on time"]

1. d4 {[%clk 0:03:00.9]} 1... Nf6 {[%clk 0:02:59.5]} 2. Nf3 {[%clk 0:03:01.3]}
2... d5 {[%clk 0:02:58.4]} 3. Bf4 {[%clk 0:03:01.6]} 3... Bf5 {[%clk 0:02:57]}
4. e3 {[%clk 0:03:00.9]} 4... e6 {[%clk 0:02:57.6]} 5. Nbd2 {[%clk 0:03:00.5]}
5... Bd6 {[%clk 0:02:57.9]} 6. Bg3 {[%clk 0:03:00.7]} 6... O-O {[%clk 0:02:57]}
7. c4 {[%clk 0:03:00.4]} 7... Nbd7 {[%clk 0:02:50.4]} 8. Qb3 {[%clk 0:02:57.7]}
8... Bxg3 {[%clk 0:02:47.5]} 9. hxg3 {[%clk 0:02:58.1]} 9... c5 {[%clk
0:02:48.2]} 10. cxd5 {[%clk 0:02:56.3]} 10... exd5 {[%clk 0:02:48]} 11. Be2
{[%clk 0:02:49.6]} 11... c4 {[%clk 0:02:46.3]} 12. Qc3 {[%clk 0:02:47.9]} 12...
b5 {[%clk 0:02:44.8]} 13. O-O {[%clk 0:02:41.7]} 13... a5 {[%clk 0:02:44.5]} 14.
a3 {[%clk 0:02:38.5]} 14... Qe7 {[%clk 0:02:42.8]} 15. b4 {[%clk 0:01:46.1]}
15... Ra6 {[%clk 0:02:40]} 16. bxa5 {[%clk 0:01:29.8]} 16... Rfa8 {[%clk
0:02:39.3]} 17. Ne5 {[%clk 0:01:30.3]} 17... Nxe5 {[%clk 0:02:39.3]} 18. dxe5
{[%clk 0:01:31.2]} 18... Nd7 {[%clk 0:02:39]} 19. Nf3 {[%clk 0:01:25.7]} 19...
Rxa5 {[%clk 0:02:36.7]} 20. Nd4 {[%clk 0:01:03.1]} 20... Qxe5 {[%clk 0:02:36.1]}
21. g4 {[%clk 0:00:56.3]} 21... Be6 {[%clk 0:02:32.5]} 22. f4 {[%clk 0:00:52.1]}
22... Qd6 {[%clk 0:02:30.1]} 23. f5 {[%clk 0:00:49.8]} 23... Rxa3 {[%clk
0:02:29.3]} 24. Rxa3 {[%clk 0:00:49.8]} 24... Rxa3 {[%clk 0:02:30.2]} 25. Qc1
{[%clk 0:00:35.7]} 25... Qc5 {[%clk 0:02:13.3]} 26. fxe6 {[%clk 0:00:34.9]}
26... fxe6 {[%clk 0:02:13.9]} 27. Kh1 {[%clk 0:00:22.1]} 27... e5 {[%clk
0:02:11.3]} 28. Nf5 {[%clk 0:00:20.4]} 28... h6 {[%clk 0:01:43.5]} 29. e4 {[%clk
0:00:20.4]} 29... d4 {[%clk 0:01:27.1]} 30. Nxh6+ {[%clk 0:00:17.7]} 30... gxh6
{[%clk 0:01:11]} 31. Qxh6 {[%clk 0:00:18.6]} 31... Qe7 {[%clk 0:01:10.8]} 32.
Qg6+ {[%clk 0:00:11.6]} 32... Kh8 {[%clk 0:01:08.1]} 33. Rf7 {[%clk 0:00:07.3]}
33... Ra1+ {[%clk 0:01:07.8]} 34. Bf1 {[%clk 0:00:06.8]} 34... Rxf1+ {[%clk
0:00:42.9]} 35. Rxf1 {[%clk 0:00:07.7]} 35... Nf8 {[%clk 0:00:43.6]} 36. Qh6+
{[%clk 0:00:06.8]} 36... Kg8 {[%clk 0:00:43.9]} 37. g5 {[%clk 0:00:06.2]} 37...
d3 {[%clk 0:00:31.6]} 38. Qc6 {[%clk 0:00:06.3]} 38... Qh7+ {[%clk 0:00:05.4]}
39. Kg1 {[%clk 0:00:06.2]} 39... Qa7+ {[%clk 0:00:06]} 40. Kh2 {[%clk
0:00:04.9]} 40... Qh7+ {[%clk 0:00:05.8]} 41. Kg3 {[%clk 0:00:05.4]} 41... Qe7
{[%clk 0:00:05.4]} 42. Rf6 {[%clk 0:00:04]} 42... d2 {[%clk 0:00:04.6]} 43. Qd5+
{[%clk 0:00:04]} 43... Kg7 {[%clk 0:00:05.1]} 44. Qxd2 {[%clk 0:00:04.2]} 44...
Ng6 {[%clk 0:00:03.7]} 45. Rf5 {[%clk 0:00:04.2]} 45... Nf4 {[%clk 0:00:03.5]}
46. Qb2 {[%clk 0:00:02.7]} 46... Nd3 {[%clk 0:00:02.7]} 47. Qc3 {[%clk
0:00:02.5]} 47... Kg6 {[%clk 0:00:02.9]} 48. Kg4 {[%clk 0:00:03]} 48... Qd7
{[%clk 0:00:02.3]} 49. Qa5 {[%clk 0:00:03.2]} 49... Nf2+ {[%clk 0:00:02.5]} 50.
Kf3 {[%clk 0:00:03.1]} 50... Qd3+ {[%clk 0:00:02.1]} 51. Kxf2 {[%clk 0:00:03.5]}
51... Qd4+ {[%clk 0:00:02.6]} 52. Kg3 {[%clk 0:00:03.7]} 52... Qe3+ {[%clk
0:00:02.4]} 53. Rf3 {[%clk 0:00:04.2]} 53... Qxg5+ {[%clk 0:00:02.2]} 54. Kf2
{[%clk 0:00:04.8]} 54... Qc1 {[%clk 0:00:01.4]} 55. Qe1 {[%clk 0:00:04.8]} 55...
Qc2+ {[%clk 0:00:01.1]} 56. Qe2 {[%clk 0:00:05.6]} 56... Qc1 {[%clk 0:00:01.7]}
57. Rg3+ {[%clk 0:00:06.2]} 57... Kf6 {[%clk 0:00:02.1]} 58. Rf3+ {[%clk
0:00:06.3]} 58... Ke7 {[%clk 0:00:01.5]} 59. Qe3 {[%clk 0:00:07.2]} 59... Qc2+
{[%clk 0:00:01.5]} 60. Kg3 {[%clk 0:00:07.9]} 60... b4 {[%clk 0:00:01.5]} 61.
Qa7+ {[%clk 0:00:07.9]} 61... Ke6 {[%clk 0:00:01.9]} 62. Qb6+ {[%clk 0:00:08.4]}
62... Ke7 {[%clk 0:00:02.2]} 63. Qxb4+ {[%clk 0:00:09]} 63... Ke6 {[%clk
0:00:02.6]} 64. Qc5 {[%clk 0:00:09.3]} 64... Qc1 {[%clk 0:00:02.5]} 65. Qd5+
{[%clk 0:00:09.5]} 65... Ke7 {[%clk 0:00:02.8]} 66. Qxe5+ {[%clk 0:00:10]} 66...
Kd7 {[%clk 0:00:02.9]} 67. Qd4+ {[%clk 0:00:10.4]} 67... Kc6 {[%clk 0:00:03.3]}
68. Rf6+ {[%clk 0:00:10.9]} 68... Kb5 {[%clk 0:00:03.9]} 69. Rb6+ {[%clk
0:00:11.4]} 69... Ka4 {[%clk 0:00:04.5]} 70. Ra6+ {[%clk 0:00:09.8]} 70... Kb3
{[%clk 0:00:05]} 71. Qb6+ {[%clk 0:00:09.3]} 71... Kc2 {[%clk 0:00:05.3]} 72.
Ra2+ {[%clk 0:00:08.8]} 72... Kd3 {[%clk 0:00:05.7]} 73. Qf2 {[%clk 0:00:08.9]}
73... Qg5+ {[%clk 0:00:05.1]} 74. Kh2 {[%clk 0:00:09.2]} 74... c3 {[%clk
0:00:04.9]} 75. Qf3+ {[%clk 0:00:07.6]} 75... Kc4 {[%clk 0:00:04.9]} 76. Ra3
{[%clk 0:00:07.3]} 76... Qh6+ {[%clk 0:00:04.4]} 77. Qh3 {[%clk 0:00:05.9]}
77... Qf4+ {[%clk 0:00:04.4]} 78. Qg3 {[%clk 0:00:06.1]} 78... Qh6+ {[%clk
0:00:04.6]} 79. Qh3 {[%clk 0:00:05.1]} 79... Qd6+ {[%clk 0:00:05.2]} 80. Qg3
{[%clk 0:00:05.4]} 80... Qxa3 {[%clk 0:00:05.8]} 81. Qc7+ {[%clk 0:00:06.1]}
81... Kd3 {[%clk 0:00:05.7]} 82. e5 {[%clk 0:00:06.6]} 82... c2 {[%clk
0:00:05.8]} 83. e6 {[%clk 0:00:07.1]} 83... c1=Q {[%clk 0:00:06]} 84. Qd7+
{[%clk 0:00:05.8]} 84... Kc2 {[%clk 0:00:05.7]} 85. e7 {[%clk 0:00:06.7]} 85...
Qf4+ {[%clk 0:00:05.9]} 0-1

[Event "*** SCC Grand Prix: Titled Tuesday Blitz"]
[Site "Chess.com"]
[Date "2020.06.09"]
[Round "9"]
[White "szachuspl"]
[Black "Khvicha_Supatashvili"]
[Result "1/2-1/2"]
[WhiteElo "2564"]
[BlackElo "2718"]
[TimeControl "180+1"]
[EndTime "10:49:13 PDT"]
[Termination "Game drawn - insufficient material"]

1. d4 {[%clk 0:03:00.9]} 1... Nf6 {[%clk 0:02:51]} 2. c4 {[%clk 0:02:58.4]} 2...
e6 {[%clk 0:02:50.6]} 3. Nf3 {[%clk 0:02:58.1]} 3... d5 {[%clk 0:02:50.5]} 4.
Nc3 {[%clk 0:02:57.7]} 4... Bb4 {[%clk 0:02:49.7]} 5. Qa4+ {[%clk 0:02:57.4]}
5... Nc6 {[%clk 0:02:49.1]} 6. e3 {[%clk 0:02:58]} 6... O-O {[%clk 0:02:46.9]}
7. Qc2 {[%clk 0:02:58.6]} 7... dxc4 {[%clk 0:02:46.3]} 8. Bxc4 {[%clk
0:02:57.3]} 8... e5 {[%clk 0:02:46.6]} 9. dxe5 {[%clk 0:02:54.3]} 9... Ng4
{[%clk 0:02:46.1]} 10. a3 {[%clk 0:02:53]} 10... Ncxe5 {[%clk 0:02:42.9]} 11.
Be2 {[%clk 0:02:45.9]} 11... Bd6 {[%clk 0:02:42]} 12. Bd2 {[%clk 0:02:43.4]}
12... c6 {[%clk 0:02:38.5]} 13. h3 {[%clk 0:02:39]} 13... Nf6 {[%clk 0:02:33.9]}
14. O-O {[%clk 0:02:37]} 14... Nxf3+ {[%clk 0:02:33.3]} 15. Bxf3 {[%clk
0:02:36.9]} 15... Qe7 {[%clk 0:02:33.8]} 16. e4 {[%clk 0:02:35.5]} 16... Qe5
{[%clk 0:02:32.5]} 17. g3 {[%clk 0:02:33.2]} 17... Bxh3 {[%clk 0:02:20.5]} 18.
Rfe1 {[%clk 0:01:59.2]} 18... Bg4 {[%clk 0:02:01.8]} 19. Bf4 {[%clk 0:01:42.3]}
19... Qe6 {[%clk 0:01:58.3]} 20. Bxg4 {[%clk 0:01:31.4]} 20... Nxg4 {[%clk
0:01:57.7]} 21. e5 {[%clk 0:01:17]} 21... Be7 {[%clk 0:01:55.2]} 22. Kg2 {[%clk
0:01:09.7]} 22... Nh6 {[%clk 0:01:19.2]} 23. Bxh6 {[%clk 0:01:09.2]} 23... Qxh6
{[%clk 0:01:18.5]} 24. f4 {[%clk 0:01:04.4]} 24... c5 {[%clk 0:00:58.6]} 25. Qe4
{[%clk 0:01:03.4]} 25... Qc6 {[%clk 0:00:52.5]} 26. Nd5 {[%clk 0:00:58.9]} 26...
Rfe8 {[%clk 0:00:51.8]} 27. Rac1 {[%clk 0:00:53.8]} 27... Rac8 {[%clk
0:00:48.7]} 28. Rh1 {[%clk 0:00:40]} 28... h6 {[%clk 0:00:42.2]} 29. Rhe1 {[%clk
0:00:33.1]} 29... c4 {[%clk 0:00:40.3]} 30. Rc2 {[%clk 0:00:29.2]} 30... b5
{[%clk 0:00:39.6]} 31. Rd2 {[%clk 0:00:22.1]} 31... Bf8 {[%clk 0:00:36.1]} 32.
Kh2 {[%clk 0:00:21.9]} 32... a5 {[%clk 0:00:34.5]} 33. Red1 {[%clk 0:00:21.4]}
33... b4 {[%clk 0:00:33.1]} 34. axb4 {[%clk 0:00:21.4]} 34... axb4 {[%clk
0:00:32.9]} 35. f5 {[%clk 0:00:18]} 35... c3 {[%clk 0:00:31.7]} 36. bxc3 {[%clk
0:00:18.2]} 36... bxc3 {[%clk 0:00:31.5]} 37. Rc2 {[%clk 0:00:18.8]} 37... Qc4
{[%clk 0:00:30.5]} 38. Qxc4 {[%clk 0:00:14.1]} 38... Rxc4 {[%clk 0:00:30.1]} 39.
Rxc3 {[%clk 0:00:12.1]} 39... Re4 {[%clk 0:00:26.2]} 40. Nf4 {[%clk 0:00:09.6]}
40... R4xe5 {[%clk 0:00:25]} 41. g4 {[%clk 0:00:09.4]} 41... Re4 {[%clk
0:00:24.6]} 42. Kg3 {[%clk 0:00:08.5]} 42... Re3+ {[%clk 0:00:22.4]} 43. Rxe3
{[%clk 0:00:08.4]} 43... Rxe3+ {[%clk 0:00:23]} 44. Kg2 {[%clk 0:00:08.6]} 44...
Be7 {[%clk 0:00:19.4]} 45. Rd3 {[%clk 0:00:08.6]} 45... Rxd3 {[%clk 0:00:19.1]}
46. Nxd3 {[%clk 0:00:08.5]} 46... Bd6 {[%clk 0:00:19.5]} 47. Kf3 {[%clk
0:00:09.1]} 47... Kf8 {[%clk 0:00:19.9]} 48. Nf2 {[%clk 0:00:08]} 48... Ke7
{[%clk 0:00:19.7]} 49. Ne4 {[%clk 0:00:07.6]} 49... Be5 {[%clk 0:00:19.9]} 50.
Ke3 {[%clk 0:00:07.9]} 50... Kd7 {[%clk 0:00:19.7]} 51. Kd3 {[%clk 0:00:08]}
51... Kc6 {[%clk 0:00:20]} 52. Kc4 {[%clk 0:00:08.5]} 52... g6 {[%clk
0:00:19.3]} 53. fxg6 {[%clk 0:00:08.5]} 53... fxg6 {[%clk 0:00:19.2]} 54. Kd3
{[%clk 0:00:09.1]} 54... Kd5 {[%clk 0:00:18.8]} 55. Ke3 {[%clk 0:00:09.6]} 55...
Kc4 {[%clk 0:00:17.6]} 56. Kf3 {[%clk 0:00:09.9]} 56... Kd4 {[%clk 0:00:17]} 57.
Nf2 {[%clk 0:00:09.3]} 57... Bf6 {[%clk 0:00:16.1]} 58. Ne4 {[%clk 0:00:09.4]}
58... Be7 {[%clk 0:00:15.9]} 59. Nf2 {[%clk 0:00:09.3]} 59... Ke5 {[%clk
0:00:15.4]} 60. Nd3+ {[%clk 0:00:08.9]} 60... Kd4 {[%clk 0:00:15.4]} 61. Nf4
{[%clk 0:00:09]} 61... g5 {[%clk 0:00:13.1]} 62. Ng2 {[%clk 0:00:08.8]} 62...
Ke5 {[%clk 0:00:09.1]} 63. Ne3 {[%clk 0:00:09.1]} 63... Kf6 {[%clk 0:00:09.1]}
64. Nf5 {[%clk 0:00:09.4]} 64... Bf8 {[%clk 0:00:09.5]} 65. Ke4 {[%clk
0:00:09.3]} 65... Kg6 {[%clk 0:00:09.1]} 66. Ng3 {[%clk 0:00:09.3]} 66... h5
{[%clk 0:00:09.5]} 67. gxh5+ {[%clk 0:00:07.6]} 67... Kf6 {[%clk 0:00:09.6]} 68.
Kf3 {[%clk 0:00:07.6]} 68... Bg7 {[%clk 0:00:07.8]} 69. Kg4 {[%clk 0:00:07.6]}
69... Bf8 {[%clk 0:00:07.8]} 70. Ne4+ {[%clk 0:00:07.7]} 70... Kg7 {[%clk
0:00:08.1]} 71. Kxg5 {[%clk 0:00:08.2]} 71... Be7+ {[%clk 0:00:07.5]} 72. Kg4
{[%clk 0:00:08.7]} 72... Kh6 {[%clk 0:00:07.7]} 73. Ng3 {[%clk 0:00:08.4]} 73...
Bf6 {[%clk 0:00:08.1]} 74. Nf5+ {[%clk 0:00:08.6]} 74... Kh7 {[%clk 0:00:08.5]}
75. Kf4 {[%clk 0:00:08.9]} 75... Ba1 {[%clk 0:00:09.1]} 76. Ke4 {[%clk
0:00:09.1]} 76... Bb2 {[%clk 0:00:09.2]} 77. Kd5 {[%clk 0:00:09.3]} 77... Ba1
{[%clk 0:00:10.1]} 78. Ke6 {[%clk 0:00:09.6]} 78... Bb2 {[%clk 0:00:11]} 79. Kf7
{[%clk 0:00:10]} 79... Ba1 {[%clk 0:00:11.1]} 80. Ke6 {[%clk 0:00:10.2]} 80...
Bb2 {[%clk 0:00:11.3]} 81. Kd5 {[%clk 0:00:10]} 81... Ba1 {[%clk 0:00:11.6]} 82.
Ke4 {[%clk 0:00:10.7]} 82... Bb2 {[%clk 0:00:11.9]} 83. Kf4 {[%clk 0:00:11.1]}
83... Ba1 {[%clk 0:00:12.4]} 84. Kg5 {[%clk 0:00:11.3]} 84... Bb2 {[%clk
0:00:12.6]} 85. Ng3 {[%clk 0:00:09.4]} 85... Bc1+ {[%clk 0:00:12.5]} 86. Kg4
{[%clk 0:00:09.9]} 86... Bb2 {[%clk 0:00:12.8]} 87. Ne2 {[%clk 0:00:10.1]} 87...
Ba1 {[%clk 0:00:12.8]} 88. Nf4 {[%clk 0:00:10.6]} 88... Bb2 {[%clk 0:00:12.7]}
89. Ne6 {[%clk 0:00:10.8]} 89... Ba1 {[%clk 0:00:12.7]} 90. Nf8+ {[%clk
0:00:11.2]} 90... Kh6 {[%clk 0:00:12.4]} 91. Ng6 {[%clk 0:00:11.8]} 91... Bb2
{[%clk 0:00:12.5]} 92. Nf4 {[%clk 0:00:12.1]} 92... Ba1 {[%clk 0:00:12.7]} 93.
Nh3 {[%clk 0:00:12.4]} 93... Bb2 {[%clk 0:00:12.7]} 94. Ng5 {[%clk 0:00:12.5]}
94... Ba1 {[%clk 0:00:12.8]} 95. Nf7+ {[%clk 0:00:13]} 95... Kg7 {[%clk
0:00:12.5]} 96. Nd6 {[%clk 0:00:12.9]} 96... Kh7 {[%clk 0:00:12.4]} 97. Kg5
{[%clk 0:00:12.7]} 97... Bb2 {[%clk 0:00:12.3]} 98. Ne4 {[%clk 0:00:12.7]} 98...
Ba1 {[%clk 0:00:12.3]} 99. Ng3 {[%clk 0:00:12.5]} 99... Bb2 {[%clk 0:00:12.1]}
100. Nf5 {[%clk 0:00:12.8]} 100... Bc1+ {[%clk 0:00:12.3]} 101. Kg4 {[%clk
0:00:12.4]} 101... Bb2 {[%clk 0:00:12.5]} 102. Kg5 {[%clk 0:00:12.7]} 102...
Bc1+ {[%clk 0:00:12.3]} 103. Kf6 {[%clk 0:00:13.6]} 103... Bb2+ {[%clk
0:00:12.4]} 104. Kf7 {[%clk 0:00:13.8]} 104... Ba1 {[%clk 0:00:12.6]} 105. Ng3
{[%clk 0:00:13.6]} 105... Be5 {[%clk 0:00:12.2]} 106. Ke6 {[%clk 0:00:13.8]}
106... Bxg3 {[%clk 0:00:12]} 107. Kf5 {[%clk 0:00:14.2]} 107... Kh6 {[%clk
0:00:12]} 108. Kg4 {[%clk 0:00:14.2]} 108... Bf4 {[%clk 0:00:12.3]} 109. Kxf4
{[%clk 0:00:14.4]} 109... Kxh5 {[%clk 0:00:12.7]} 1/2-1/2

[Event "*** SCC Grand Prix: Titled Tuesday Blitz"]
[Site "Chess.com"]
[Date "2020.06.09"]
[Round "10"]
[White "rududuyk"]
[Black "j2806"]
[Result "1-0"]
[WhiteElo "2176"]
[BlackElo "2028"]
[TimeControl "180+1"]
[EndTime "10:52:19 PDT"]
[Termination "rududuyk won by resignation"]

1. e4 {[%clk 0:03:00.9]} 1... c5 {[%clk 0:02:59]} 2. Nc3 {[%clk 0:03:00.2]} 2...
Nc6 {[%clk 0:02:57.4]} 3. f4 {[%clk 0:03:00.5]} 3... g6 {[%clk 0:02:57.3]} 4.
Nf3 {[%clk 0:03:01.1]} 4... Bg7 {[%clk 0:02:57.3]} 5. Bc4 {[%clk 0:03:01.7]}
5... e6 {[%clk 0:02:57.4]} 6. O-O {[%clk 0:03:01.6]} 6... Nge7 {[%clk
0:02:57.6]} 7. d3 {[%clk 0:03:01.8]} 7... a6 {[%clk 0:02:56.6]} 8. a4 {[%clk
0:03:01.5]} 8... O-O {[%clk 0:02:56.1]} 9. Qe1 {[%clk 0:03:01.8]} 9... b6 {[%clk
0:02:53.7]} 10. f5 {[%clk 0:02:58.7]} 10... exf5 {[%clk 0:02:47.5]} 11. Qh4
{[%clk 0:02:55.1]} 11... fxe4 {[%clk 0:02:41.5]} 12. dxe4 {[%clk 0:02:53.3]}
12... d6 {[%clk 0:02:35.1]} 13. Ng5 {[%clk 0:02:41.1]} 13... h6 {[%clk
0:02:11.3]} 14. Nxf7 {[%clk 0:02:38.1]} 14... d5 {[%clk 0:02:05.7]} 15. Nxd8
{[%clk 0:02:30.7]} 1-0

[Event "*** SCC Grand Prix: Titled Tuesday Blitz"]
[Site "Chess.com"]
[Date "2020.06.09"]
[Round "10"]
[White "woodhy"]
[Black "topotun"]
[Result "0-1"]
[WhiteElo "2473"]
[BlackElo "2627"]
[TimeControl "180+1"]
[EndTime "10:53:05 PDT"]
[Termination "topotun won by resignation"]

1. e4 {[%clk 0:02:53.8]} 1... c6 {[%clk 0:03:00.1]} 2. d4 {[%clk 0:02:52]} 2...
d5 {[%clk 0:03:01]} 3. Nc3 {[%clk 0:02:52.6]} 3... dxe4 {[%clk 0:03:01]} 4. Nxe4
{[%clk 0:02:52.5]} 4... Bf5 {[%clk 0:03:01.5]} 5. Ng3 {[%clk 0:02:52.4]} 5...
Bg6 {[%clk 0:03:01.8]} 6. Nf3 {[%clk 0:02:52.7]} 6... Nd7 {[%clk 0:03:01]} 7.
Bc4 {[%clk 0:02:50]} 7... e6 {[%clk 0:03:00.9]} 8. O-O {[%clk 0:02:46.2]} 8...
Bd6 {[%clk 0:02:59.4]} 9. Ne2 {[%clk 0:02:45.4]} 9... Qc7 {[%clk 0:02:59.4]} 10.
g3 {[%clk 0:02:45]} 10... Ngf6 {[%clk 0:02:52.1]} 11. Bf4 {[%clk 0:02:44]} 11...
O-O-O {[%clk 0:02:51.1]} 12. Re1 {[%clk 0:02:41.3]} 12... e5 {[%clk 0:02:39]}
13. dxe5 {[%clk 0:02:40.7]} 13... Nxe5 {[%clk 0:02:39.9]} 14. Nxe5 {[%clk
0:02:40.5]} 14... Bxe5 {[%clk 0:02:40.8]} 15. Qc1 {[%clk 0:02:40.7]} 15... Rhe8
{[%clk 0:02:28]} 16. Bb3 {[%clk 0:02:34.9]} 16... Ne4 {[%clk 0:02:18]} 17. Bxe5
{[%clk 0:02:32.9]} 17... Rxe5 {[%clk 0:02:18.9]} 18. Nf4 {[%clk 0:02:32.6]}
18... Nd2 {[%clk 0:02:12.2]} 19. Nxg6 {[%clk 0:02:13.6]} 19... Rxe1+ {[%clk
0:02:09.7]} 20. Qxe1 {[%clk 0:02:07.4]} 20... Nf3+ {[%clk 0:02:09.4]} 21. Kf1
{[%clk 0:02:04.3]} 21... Nxe1 {[%clk 0:02:10.3]} 22. Ne7+ {[%clk 0:02:02.1]}
22... Qxe7 {[%clk 0:02:09.7]} 23. Rxe1 {[%clk 0:02:03]} 23... Qf6 {[%clk
0:02:09.7]} 0-1

[Event "*** SCC Grand Prix: Titled Tuesday Blitz"]
[Site "Chess.com"]
[Date "2020.06.09"]
[Round "10"]
[White "Bulldog167"]
[Black "Fusikk"]
[Result "1-0"]
[WhiteElo "2781"]
[BlackElo "2588"]
[TimeControl "180+1"]
[EndTime "10:53:41 PDT"]
[Termination "Bulldog167 won by resignation"]

1. e4 {[%clk 0:03:00.9]} 1... c6 {[%clk 0:02:59.5]} 2. Nc3 {[%clk 0:02:57.1]}
2... d5 {[%clk 0:02:59.7]} 3. Nf3 {[%clk 0:02:58]} 3... Bg4 {[%clk 0:02:57.3]}
4. h3 {[%clk 0:02:57.2]} 4... Bxf3 {[%clk 0:02:57.4]} 5. Qxf3 {[%clk 0:02:58.1]}
5... e6 {[%clk 0:02:57.9]} 6. d3 {[%clk 0:02:58]} 6... Nd7 {[%clk 0:02:57.7]} 7.
g3 {[%clk 0:02:57.9]} 7... g6 {[%clk 0:02:57.1]} 8. Bg2 {[%clk 0:02:58.2]} 8...
Bg7 {[%clk 0:02:57.6]} 9. Bd2 {[%clk 0:02:58.8]} 9... Ne7 {[%clk 0:02:58.1]} 10.
O-O {[%clk 0:02:58.3]} 10... O-O {[%clk 0:02:58.3]} 11. Qe2 {[%clk 0:02:58]}
11... Qb6 {[%clk 0:02:57.8]} 12. Rab1 {[%clk 0:02:58.1]} 12... Rae8 {[%clk
0:02:46.5]} 13. Kh2 {[%clk 0:02:57.9]} 13... f5 {[%clk 0:02:45.1]} 14. f4 {[%clk
0:02:54.7]} 14... Nc8 {[%clk 0:02:37.2]} 15. e5 {[%clk 0:02:51.5]} 15... c5
{[%clk 0:02:28.3]} 16. Nd1 {[%clk 0:02:50.5]} 16... Kh8 {[%clk 0:02:26]} 17. c4
{[%clk 0:02:50.9]} 17... d4 {[%clk 0:02:14.9]} 18. b4 {[%clk 0:02:43.8]} 18...
Qc7 {[%clk 0:02:14.6]} 19. a3 {[%clk 0:02:42.4]} 19... Rg8 {[%clk 0:02:11.4]}
20. h4 {[%clk 0:02:37.9]} 20... h5 {[%clk 0:02:07.5]} 21. Bf3 {[%clk 0:02:36.3]}
21... Kh7 {[%clk 0:02:00.7]} 22. Nf2 {[%clk 0:02:34.2]} 22... Nf8 {[%clk
0:01:48]} 23. Nh3 {[%clk 0:02:34.5]} 23... Kh8 {[%clk 0:01:41.3]} 24. bxc5
{[%clk 0:02:34.1]} 24... b6 {[%clk 0:01:36.9]} 25. cxb6 {[%clk 0:02:33.4]} 25...
Nxb6 {[%clk 0:01:37.8]} 26. Bb4 {[%clk 0:02:28.2]} 26... Nh7 {[%clk 0:01:36.9]}
27. Bd6 {[%clk 0:02:27.4]} 27... Qc8 {[%clk 0:01:31.9]} 28. Qg2 {[%clk
0:02:24.4]} 28... Na4 {[%clk 0:01:28.5]} 29. Bc6 {[%clk 0:02:23.7]} 1-0

[Event "*** SCC Grand Prix: Titled Tuesday Blitz"]
[Site "Chess.com"]
[Date "2020.06.09"]
[Round "10"]
[White "Ural_bogatyr"]
[Black "Vesper2018"]
[Result "0-1"]
[WhiteElo "2305"]
[BlackElo "2422"]
[TimeControl "180+1"]
[EndTime "10:53:48 PDT"]
[Termination "Vesper2018 won by resignation"]

1. e4 {[%clk 0:03:00.9]} 1... c5 {[%clk 0:02:59.2]} 2. Nf3 {[%clk 0:03:00.4]}
2... d6 {[%clk 0:02:59.1]} 3. d4 {[%clk 0:03:00.4]} 3... cxd4 {[%clk 0:02:59.6]}
4. Qxd4 {[%clk 0:03:01.2]} 4... Nf6 {[%clk 0:02:57.1]} 5. Nc3 {[%clk 0:03:00.8]}
5... a6 {[%clk 0:02:51]} 6. Be3 {[%clk 0:02:59.8]} 6... e5 {[%clk 0:02:45.7]} 7.
Qd2 {[%clk 0:02:58.6]} 7... Be7 {[%clk 0:02:44.7]} 8. O-O-O {[%clk 0:02:56.3]}
8... O-O {[%clk 0:02:41.1]} 9. Bg5 {[%clk 0:02:54.5]} 9... Nbd7 {[%clk
0:02:40.5]} 10. h3 {[%clk 0:02:48.7]} 10... b5 {[%clk 0:02:27.5]} 11. g4 {[%clk
0:02:48.2]} 11... b4 {[%clk 0:02:21.6]} 12. Nd5 {[%clk 0:02:47.7]} 12... Nxd5
{[%clk 0:02:20.5]} 13. exd5 {[%clk 0:02:46.2]} 13... a5 {[%clk 0:02:09.1]} 14.
Bd3 {[%clk 0:02:42.5]} 14... Nc5 {[%clk 0:02:02.5]} 15. Rde1 {[%clk 0:02:28.7]}
15... Nxd3+ {[%clk 0:01:53.7]} 16. Qxd3 {[%clk 0:02:29.6]} 16... Bxg5+ {[%clk
0:01:52.9]} 17. Kb1 {[%clk 0:02:28.3]} 17... Bf4 {[%clk 0:01:50.8]} 18. h4
{[%clk 0:02:26.2]} 18... a4 {[%clk 0:01:42.9]} 19. Ng5 {[%clk 0:02:20.2]} 19...
g6 {[%clk 0:01:40.5]} 20. Nh3 {[%clk 0:02:17.2]} 20... Bh6 {[%clk 0:01:37.4]}
21. h5 {[%clk 0:02:14.7]} 21... Bg7 {[%clk 0:01:36.1]} 22. h6 {[%clk 0:02:12.7]}
22... Bh8 {[%clk 0:01:35.4]} 23. f4 {[%clk 0:02:11.1]} 23... exf4 {[%clk
0:01:33.9]} 24. Nxf4 {[%clk 0:02:12]} 24... Qf6 {[%clk 0:01:26.6]} 0-1

[Event "*** SCC Grand Prix: Titled Tuesday Blitz"]
[Site "Chess.com"]
[Date "2020.06.09"]
[Round "10"]
[White "bratkoo"]
[Black "OhanyanEminChess"]
[Result "0-1"]
[WhiteElo "2335"]
[BlackElo "2444"]
[TimeControl "180+1"]
[EndTime "10:53:50 PDT"]
[Termination "OhanyanEminChess won by resignation"]

1. e4 {[%clk 0:03:00.9]} 1... e5 {[%clk 0:02:59.5]} 2. Nf3 {[%clk 0:02:59.4]}
2... Nc6 {[%clk 0:02:58.5]} 3. Bc4 {[%clk 0:02:57.9]} 3... Nf6 {[%clk 0:02:58]}
4. d3 {[%clk 0:02:57.3]} 4... d5 {[%clk 0:02:56.9]} 5. exd5 {[%clk 0:02:51.9]}
5... Nxd5 {[%clk 0:02:57.8]} 6. O-O {[%clk 0:02:51.7]} 6... Bc5 {[%clk
0:02:53.6]} 7. Re1 {[%clk 0:02:49.6]} 7... Be6 {[%clk 0:02:51.3]} 8. c3 {[%clk
0:02:23.3]} 8... O-O {[%clk 0:02:49.6]} 9. b4 {[%clk 0:02:20.4]} 9... Bb6 {[%clk
0:02:49.3]} 10. b5 {[%clk 0:02:20.1]} 10... Na5 {[%clk 0:02:49.1]} 11. Nxe5
{[%clk 0:02:20.1]} 11... Nxc4 {[%clk 0:02:47.4]} 12. Nxc4 {[%clk 0:02:16.4]}
12... Qf6 {[%clk 0:02:42.9]} 13. Nxb6 {[%clk 0:02:12.6]} 13... axb6 {[%clk
0:02:39.4]} 14. Bb2 {[%clk 0:02:07.9]} 14... Nf4 {[%clk 0:02:38.1]} 15. Qf3
{[%clk 0:01:53.5]} 15... Bd5 {[%clk 0:02:35.4]} 16. Qg3 {[%clk 0:01:34]} 16...
Rfe8 {[%clk 0:02:25.8]} 17. Rxe8+ {[%clk 0:01:30.8]} 17... Rxe8 {[%clk
0:02:26.7]} 18. Nd2 {[%clk 0:01:06.7]} 18... Ne2+ {[%clk 0:02:26]} 19. Kf1
{[%clk 0:01:07.3]} 19... Nxg3+ {[%clk 0:02:26.9]} 20. hxg3 {[%clk 0:01:07.7]}
20... Qf5 {[%clk 0:02:26.4]} 21. Ne4 {[%clk 0:01:05.1]} 21... Bxe4 {[%clk
0:02:25.1]} 22. dxe4 {[%clk 0:01:06]} 22... Qxe4 {[%clk 0:02:26]} 23. Kg1 {[%clk
0:01:04.9]} 23... Qe2 {[%clk 0:02:24.8]} 24. Ba3 {[%clk 0:01:04.6]} 24... Qxb5
{[%clk 0:02:24.8]} 25. Rd1 {[%clk 0:01:03.5]} 0-1